bitfinex/quotes_SOLUSD_20250528
["timestamp","ask_amount","ask_price","bid_price","bid_amount"]
[1748397443359,26.0,175.92,175.88,15.86240334]
[1748397443587,34.72,175.91,175.88,15.86240334]
[1748397443868,34.72,175.91,175.89,15.86240334]
[1748397444031,34.72,175.91,175.87,8.96]
[1748397444235,34.72,175.91,175.89,15.86240334]
[1748397444461,34.72,175.91,175.88,15.86240334]
[1748397444648,34.72,175.91,175.87,24.82240334]
[1748397445636,5.68504832,175.9,175.87,8.96]
[1748397445863,5.68504832,175.9,175.87,24.82240334]
[1748397447285,5.68504832,175.9,175.89,15.86240334]
[1748397447769,5.68504832,175.9,175.88,15.86240334]
[1748397449243,5.68504832,175.9,175.87,8.96]
[1748397449244,21.54745166,175.9,175.87,8.96]
[1748397450967,31.68569479,175.88,175.87,8.96]
[1748397451345,31.68569479,175.88,175.87,24.82240334]
[1748397451571,31.68569479,175.88,175.87,8.96]
[1748397452583,74.32840571,175.88,175.84,15.86240334]
[1748397454034,48.32840571,175.88,175.84,15.86240334]
[1748397454197,48.32840571,175.88,175.82,10.5946]
[1748397454393,19.89993176,175.88,175.86,15.86240334]
[1748397454599,19.89993176,175.88,175.87,15.86240334]
[1748397454905,19.89993176,175.88,175.86,15.86240334]
[1748397455428,14.21423697,175.88,175.86,15.86240334]
[1748397457439,14.21423697,175.88,175.82,10.5946]
[1748397457638,14.21423697,175.88,175.85,15.86240334]
[1748397458407,14.21423697,175.88,175.87,15.86240334]
[1748397459347,14.21235623,175.91,175.87,15.86240334]
[1748397459519,14.21235623,175.91,175.89,15.86240334]
[1748397459843,14.21235623,175.91,175.88,15.86240334]
[1748397460551,26.0,175.87,175.78,19.95440865]
[1748397460715,15.86240334,175.79,175.78,4.09200531]
[1748397461052,65.70220668,175.79,175.78,4.09200531]
[1748397461262,58.35185554,175.79,175.78,4.09200531]
[1748397461409,66.62670922,175.79,175.78,4.09200531]
[1748397461613,64.53018089,175.79,175.78,4.09200531]
[1748397461840,64.67234246,175.79,175.78,4.09200531]
[1748397462514,70.36094818,175.79,175.78,4.09200531]
[1748397463133,7.32350572,175.79,175.78,4.09200531]
[1748397463350,58.00590906,175.79,175.78,4.09200531]
[1748397463939,58.02590906,175.79,175.78,4.09200531]
[1748397464842,84.02590906,175.79,175.78,4.09200531]
[1748397465732,31.68860572,175.79,175.78,4.09200531]
[1748397466043,5.68860572,175.79,175.78,4.09200531]
[1748397466247,40.50860572,175.79,175.78,4.09200531]
[1748397466632,56.37100906,175.79,175.78,4.09200531]
[1748397469128,58.57100906,175.79,175.78,4.09200531]
[1748397469454,56.37100906,175.79,175.78,4.09200531]
[1748397470851,101.16281949,175.79,175.78,4.09200531]
[1748397474252,103.06281949,175.79,175.78,4.09200531]
[1748397475056,99.22662283,175.79,175.78,4.09200531]
[1748397475264,26.0,175.76,175.69,8.98]
[1748397475468,15.86240334,175.72,175.69,8.98]
[1748397475639,50.70240334,175.72,175.69,8.98]
[1748397475841,34.84,175.72,175.69,8.98]
[1748397477366,5.69119572,175.71,175.69,8.98]
[1748397480256,5.69119572,175.71,175.69,24.84240334]
[1748397480468,5.69119572,175.71,175.7,15.86240334]
[1748397480855,5.69119572,175.71,175.69,24.84240334]
[1748397481258,5.69119572,175.71,175.7,15.86240334]
[1748397481457,5.69119572,175.71,175.69,24.84240334]
[1748397481774,19.91765504,175.73,175.7,15.86240334]
[1748397482355,5.69054799,175.73,175.72,15.86240334]
[1748397482562,5.69054799,175.73,175.71,15.86240334]
[1748397483867,35.77639739,175.76,175.71,15.86240334]
[1748397486055,19.91399405,175.76,175.72,15.86240334]
[1748397487460,19.91399405,175.76,175.69,97.98]
[1748397487661,19.91399405,175.76,175.72,15.86240334]
[1748397488057,35.77639739,175.76,175.72,15.86240334]
[1748397488373,19.91399405,175.76,175.72,15.86240334]
[1748397490268,19.91399405,175.76,175.73,15.86240334]
[1748397490569,26.0,175.68,175.57,6.4358]
[1748397490753,15.86240334,175.64,175.59,15.86240334]
[1748397491269,41.86240334,175.67,175.63,18.86240334]
[1748397491568,34.9,175.66,175.63,18.86240334]
[1748397491745,37.77702615,175.66,175.63,18.86240334]
[1748397492364,5.69313976,175.65,175.63,18.86240334]
[1748397492749,5.69313976,175.65,175.63,3.0]
[1748397493143,5.69313976,175.65,175.64,15.86240334]
[1748397494262,5.69184358,175.69,175.64,15.86240334]
[1748397494570,22.79368813,175.7,175.67,15.86240334]
[1748397495088,5.69151963,175.7,175.69,15.86240334]
[1748397496658,5.69087184,175.72,175.69,15.86240334]
[1748397496969,5.69087184,175.72,175.71,15.86240334]
[1748397498652,19.91465148,175.75,175.71,15.86240334]
[1748397498869,19.91465148,175.75,175.73,15.86240334]
[1748397500871,14.22475106,175.75,175.73,15.86240334]
[1748397503055,19.91465148,175.75,175.73,15.86240334]
[1748397504962,19.91465148,175.75,175.74,15.86240334]
[1748397506654,5.68990042,175.75,175.74,15.86240334]
[1748397506882,5.68990042,175.75,175.74,104.86240334]
[1748397507049,14.22287767,175.78,175.74,89.0]
[1748397507256,14.22287767,175.78,175.77,15.86240334]
[1748397508492,5.68828213,175.8,175.77,15.86240334]
[1748397508780,5.68828213,175.8,175.79,15.86240334]
[1748397508963,19.90842665,175.81,175.78,15.86240334]
[1748397510286,19.90842665,175.81,175.79,15.86240334]
[1748397510287,14.22046806,175.81,175.79,15.86240334]
[1748397511174,14.22046806,175.81,175.78,15.86240334]
[1748397511779,14.22046806,175.81,175.74,89.0]
[1748397511978,15.86240334,175.76,175.73,9.02]
[1748397513484,5.68990042,175.75,175.73,9.02]
[1748397514382,5.68990042,175.75,175.74,15.86240334]
[1748397515454,14.22391315,175.77,175.73,24.88240334]
[1748397515660,30.08631649,175.77,175.73,24.88240334]
[1748397516657,14.22391315,175.77,175.73,24.88240334]
[1748397517258,14.22391315,175.77,175.74,15.86240334]
[1748397517791,14.22391315,175.77,175.73,24.88240334]
[1748397517995,15.86240334,175.76,175.73,9.02]
[1748397518205,15.86240334,175.75,175.73,9.02]
[1748397518496,15.86240334,175.74,175.73,9.02]
[1748397518668,15.86240334,175.74,175.68,113.92240334]
[1748397518855,15.86240334,175.72,175.68,9.06]
[1748397519676,5.69119572,175.71,175.68,24.92240334]
[1748397519882,5.69119572,175.71,175.7,15.86240334]
[1748397520407,5.69119572,175.71,175.64,6.14356157]
[1748397520408,26.0,175.67,175.63,3.0]
[1748397520587,15.86240334,175.64,175.63,3.0]
[1748397521899,31.82100246,175.64,175.63,3.0]
[1748397525196,26.12753856,175.64,175.63,3.0]
[1748397526378,40.71313976,175.65,175.63,3.0]
[1748397526379,5.69313976,175.65,175.63,3.0]
[1748397528485,5.69281566,175.66,175.63,3.0]
[1748397529088,5.69281566,175.66,175.63,29.12753856]
[1748397529984,5.69281566,175.66,175.63,3.0]
[1748397530478,31.82035422,175.66,175.63,3.0]
[1748397531607,5.69281566,175.66,175.63,3.0]
[1748397531814,31.82035422,175.66,175.63,3.0]
[1748397533909,5.69281566,175.66,175.63,3.0]
[1748397535911,14.23192345,175.67,175.63,3.0]
[1748397536097,40.35946201,175.67,175.63,3.0]
[1748397536299,26.12753856,175.66,175.63,3.0]
[1748397536602,26.12753856,175.65,175.63,3.0]
[1748397536982,26.12753856,175.66,175.63,3.0]
[1748397538114,26.12753856,175.64,175.63,3.0]
[1748397539112,5.69313976,175.65,175.63,3.0]
[1748397539113,31.82067832,175.65,175.63,3.0]
[1748397540493,5.69313976,175.65,175.63,3.0]
[1748397541583,31.82067832,175.65,175.63,3.0]
[1748397543402,5.69313976,175.65,175.63,3.0]
[1748397543581,31.82067832,175.65,175.63,3.0]
[1748397543990,21.72398693,175.65,175.63,3.0]
[1748397544519,5.69151963,175.7,175.64,16.03084717]
[1748397544689,5.69151963,175.7,175.66,16.03084717]
[1748397544889,5.69151963,175.7,175.67,9.08]
[1748397546393,16.03084717,175.7,175.67,9.08]
[1748397546710,14.22859813,175.71,175.67,9.08]
[1748397546711,16.03084717,175.69,175.67,9.08]
[1748397547095,16.03084717,175.7,175.67,9.08]
[1748397547816,32.06169434,175.68,175.63,3.0]
[1748397547991,16.03084717,175.64,175.63,3.0]
[1748397549505,51.11084717,175.64,175.63,3.0]
[1748397549814,56.80431107,175.64,175.63,3.0]
[1748397550792,56.80431107,175.64,175.5,51.09084717]
[1748397550793,10.0,175.57,175.37,7.9203]
[1748397550993,26.0,175.53,175.37,7.9203]
[1748397551304,16.03084717,175.46,175.37,7.9203]
[1748397551489,16.03084717,175.46,175.4,16.03084717]
[1748397551690,21.73015185,175.46,175.37,7.9203]
[1748397551896,21.73015185,175.46,175.39,26.18523995]
[1748397551897,31.88454463,175.46,175.39,26.18523995]
[1748397552192,5.69930468,175.46,175.45,1.24779107]
[1748397552626,24.34895354,175.46,175.45,1.24779107]
[1748397552833,27.1431096,175.46,175.45,1.24779107]
[1748397552998,79.5135895,175.46,175.45,1.24779107]
[1748397553202,27.1431096,175.46,175.45,1.24779107]
[1748397553396,26.0,175.43,175.35,0.16]
[1748397553623,26.18523995,175.36,175.35,0.16]
[1748397553929,35.52,175.36,175.35,0.16]
[1748397554091,18.64964886,175.33,175.27,0.22203843]
[1748397554297,18.64964886,175.28,175.27,0.22203843]
[1748397554506,6.0773,175.36,175.27,0.22203843]
[1748397554716,0.14216157,175.4,175.29,26.18523995]
[1748397554915,48.45789862,175.41,175.28,9.12]
[1748397555219,26.18523995,175.37,175.28,9.12]
[1748397555521,26.18523995,175.37,175.31,26.18523995]
[1748397555723,26.18523995,175.37,175.33,26.18523995]
[1748397555724,5.70222957,175.37,175.33,26.18523995]
[1748397555916,5.70222957,175.37,175.34,9.54]
[1748397556115,5.70222957,175.37,175.34,35.72523995]
[1748397556321,5.70222957,175.37,175.34,9.54]
[1748397556627,26.18523995,175.35,175.34,9.54]
[1748397557224,26.18523995,175.36,175.34,9.54]
[1748397557391,26.18523995,175.35,175.34,9.54]
[1748397557797,31.8881199,175.35,175.34,9.54]
[1748397559334,5.70287995,175.35,175.34,9.54]
[1748397559627,46.14531978,175.35,175.28,26.18523995]
[1748397559818,5.70353048,175.33,175.29,9.54]
[1748397560018,31.88877043,175.33,175.29,9.54]
[1748397560224,46.14759664,175.33,175.29,9.54]
[1748397561128,19.96235669,175.33,175.29,35.72523995]
[1748397561311,26.18523995,175.32,175.29,9.54]
[1748397561511,26.18523995,175.31,175.29,9.54]
[1748397561835,46.14759664,175.33,175.29,35.72523995]
[1748397562209,19.96235669,175.33,175.29,35.72523995]
[1748397562408,46.14759664,175.33,175.29,9.54]
[1748397562910,46.14759664,175.33,175.29,35.72523995]
[1748397563126,19.96235669,175.33,175.29,9.54]
[1748397563305,26.18523995,175.3,175.27,9.76203843]
[1748397563507,26.18523995,175.32,175.28,26.18523995]
[1748397563720,19.96235669,175.33,175.29,26.18523995]
[1748397564035,19.96235669,175.33,175.32,26.18523995]
[1748397564424,19.96235669,175.33,175.31,26.18523995]
[1748397565338,14.25882621,175.33,175.31,26.18523995]
[1748397565521,40.44406616,175.33,175.31,9.54]
[1748397565715,26.18523995,175.32,175.31,9.54]
[1748397565906,40.44406616,175.33,175.31,9.54]
[1748397566329,26.18523995,175.32,175.31,9.54]
[1748397567836,31.88909575,175.32,175.31,9.54]
[1748397568927,5.7038558,175.32,175.31,9.54]
[1748397569816,46.14759664,175.33,175.31,9.54]
[1748397570014,19.96235669,175.33,175.31,9.54]
[1748397571436,46.14759664,175.33,175.31,9.54]
[1748397571739,26.18523995,175.32,175.31,9.54]
[1748397571908,19.96235669,175.33,175.28,26.18523995]
[1748397571909,46.14759664,175.33,175.28,26.18523995]
[1748397572110,26.18523995,175.31,175.29,9.54]
[1748397572344,26.18523995,175.3,175.29,9.54]
[1748397572720,19.96235669,175.33,175.29,9.54]
[1748397572915,26.18523995,175.3,175.27,0.22203843]
[1748397573128,31.89039741,175.28,175.27,0.22203843]
[1748397573328,31.89039741,175.28,175.19,27.72173995]
[1748397573630,26.18523995,175.24,175.19,1.5365]
[1748397573935,26.18523995,175.24,175.19,27.72173995]
[1748397574117,26.18523995,175.26,175.21,26.18523995]
[1748397574312,26.18523995,175.25,175.19,1.5365]
[1748397574539,26.18523995,175.25,175.2,123.63470395]
[1748397574729,48.49383842,175.28,175.2,123.63470395]
[1748397575025,48.49383842,175.28,175.23,26.18523995]
[1748397575327,26.18523995,175.28,175.24,9.54]
[1748397575527,26.18523995,175.27,175.24,9.54]
[1748397575719,26.18523995,175.28,175.24,9.54]
[1748397576047,26.18523995,175.27,175.24,9.54]
[1748397576334,26.18523995,175.28,175.24,9.54]
[1748397576540,26.18523995,175.27,175.24,9.54]
[1748397577228,26.18523995,175.25,175.23,9.54]
[1748397578322,26.18523995,175.26,175.23,9.54]
[1748397579036,26.18523995,175.24,175.2,97.449464]
[1748397579241,28.52503656,175.29,175.2,97.449464]
[1748397579242,36.06,175.23,175.2,97.449464]
[1748397579429,26.18523995,175.21,175.2,97.449464]
[1748397579751,36.12,175.23,175.2,97.449464]
[1748397579912,26.18523995,175.21,175.2,97.449464]
[1748397580225,24.91344886,175.26,175.2,97.449464]
[1748397580226,26.18523995,175.24,175.2,97.449464]
[1748397580457,5.70678536,175.23,175.2,106.989464]
[1748397580616,26.18523995,175.21,175.2,97.449464]
[1748397580941,26.18523995,175.21,175.2,71.870764]
[1748397580942,44.79181043,175.21,175.2,71.870764]
[1748397581237,44.79181043,175.21,175.2,52.06301513]
[1748397581238,36.22,175.21,175.2,52.06301513]
[1748397582021,5.70678536,175.23,175.2,78.24825508]
[1748397582220,5.70678536,175.23,175.21,26.18523995]
[1748397582422,14.26683021,175.24,175.2,78.24825508]
[1748397583323,14.26683021,175.24,175.21,26.18523995]
[1748397583524,14.26683021,175.24,175.22,9.54]
[1748397583724,5.70580851,175.26,175.23,26.18523995]
[1748397584243,19.97032979,175.26,175.22,9.54]
[1748397584447,19.97032979,175.26,175.22,35.72523995]
[1748397584839,19.97032979,175.26,175.23,26.18523995]
[1748397586531,14.26452128,175.26,175.23,26.18523995]
[1748397586938,14.26452128,175.26,175.24,26.18523995]
[1748397587155,14.26452128,175.26,175.25,26.18523995]
[1748397588970,5.70515746,175.28,175.25,26.18523995]
[1748397589130,5.70515746,175.28,175.23,26.18523995]
[1748397589131,5.70515746,175.28,175.27,27.69913995]
[1748397590752,19.96402772,175.32,175.27,27.69913995]
[1748397590939,19.96402772,175.32,175.29,26.18523995]
[1748397591139,19.96402772,175.32,175.28,36.08523995]
[1748397591338,19.96402772,175.32,175.29,26.18523995]
[1748397592568,14.26017192,175.32,175.31,26.18523995]
[1748397592743,5.70353048,175.33,175.31,26.18523995]
[1748397592948,5.70353048,175.33,175.32,26.18523995]
[1748397593538,19.95211492,175.42,175.32,26.18523995]
[1748397593771,19.95211492,175.42,175.38,26.18523995]
[1748397593971,46.13735487,175.42,175.38,26.18523995]
[1748397594645,19.95211492,175.42,175.38,26.18523995]
[1748397594845,46.13735487,175.42,175.38,26.18523995]
[1748397596573,19.95211492,175.42,175.39,26.18523995]
[1748397596760,19.95211492,175.42,175.38,26.18523995]
[1748397596944,46.13735487,175.42,175.38,26.18523995]
[1748397597137,19.95211492,175.42,175.39,26.18523995]
[1748397597336,19.95211492,175.42,175.4,26.18523995]
[1748397598363,14.25151066,175.42,175.4,26.18523995]
[1748397599050,14.25151066,175.42,175.37,9.9]
[1748397599051,14.25151066,175.42,175.39,26.18523995]
[1748397599357,14.25151066,175.42,175.38,26.18523995]
[1748397599667,40.43675061,175.42,175.37,9.9]
[1748397599865,26.18523995,175.38,175.37,9.9]
[1748397600452,31.88714438,175.38,175.37,9.9]
[1748397600653,5.70190443,175.38,175.37,9.9]
[1748397600994,74.65142765,175.38,175.32,9.88]
[1748397601276,36.36,175.37,175.32,9.88]
[1748397601577,36.36,175.37,175.28,9.88]
[1748397601962,26.18523995,175.29,175.28,9.88]
[1748397602287,26.18523995,175.29,175.23,91.96]
[1748397602461,26.18523995,175.25,175.23,91.96]
[1748397602653,26.18523995,175.26,175.23,91.96]
[1748397603036,26.18523995,175.25,175.23,91.96]
[1748397603181,26.18523995,175.24,175.23,9.88]
[1748397603751,56.36805111,175.28,175.23,9.88]
[1748397604075,26.18523995,175.24,175.2,52.06301513]
[1748397604250,26.18523995,175.22,175.2,52.06301513]
[1748397604450,5.70711106,175.22,175.2,52.06301513]
[1748397604672,31.89235101,175.22,175.2,52.06301513]
[1748397604874,5.70711106,175.22,175.2,52.06301513]
[1748397605081,31.89235101,175.22,175.2,52.06301513]
[1748397605248,5.70711106,175.22,175.2,52.06301513]
[1748397606057,26.18523995,175.21,175.2,52.06301513]
[1748397606561,31.89267674,175.21,175.2,52.06301513]
[1748397606774,5.70743679,175.21,175.2,52.06301513]
[1748397608160,31.89267674,175.21,175.2,52.06301513]
[1748397608695,68.27267674,175.21,175.2,52.06301513]
[1748397609057,31.89267674,175.21,175.2,52.06301513]
[1748397609261,31.89267674,175.21,175.2,78.24825508]
[1748397609262,5.70743679,175.21,175.2,78.24825508]
[1748397609789,5.70678536,175.23,175.2,78.24825508]
[1748397609963,5.70678536,175.23,175.22,26.18523995]
[1748397610555,14.26582795,175.25,175.21,26.18523995]
[1748397610779,14.26582795,175.25,175.2,52.06301513]
[1748397610780,6.5106,175.23,175.2,52.06301513]
[1748397610997,26.18523995,175.21,175.2,52.06301513]
[1748397611366,14.40798952,175.25,175.2,52.06301513]
[1748397611367,50.66582795,175.25,175.2,88.14825508]
[1748397611582,26.18523995,175.21,175.2,61.96301513]
[1748397611767,36.42,175.22,175.2,52.06301513]
[1748397612085,26.18523995,175.21,175.2,52.06301513]
[1748397612290,44.97705038,175.21,175.2,52.06301513]
[1748397612787,76.68448717,175.21,175.2,52.06301513]
[1748397614107,76.68448717,175.21,175.12,4.09200531]
[1748397614108,26.0,175.17,175.12,4.09200531]
[1748397614307,26.18523995,175.13,175.12,4.09200531]
[1748397614514,62.62523995,175.13,175.12,4.09200531]
[1748397614814,68.33528391,175.13,175.12,4.09200531]
[1748397615208,5.71004396,175.13,175.12,4.09200531]
[1748397615529,75.86617833,175.21,175.12,4.09200531]
[1748397615530,5.70939194,175.15,175.12,30.27724526]
[1748397615803,5.7084142,175.18,175.15,1.5691]
[1748397616000,5.7084142,175.18,175.17,26.18523995]
[1748397616387,5.7084142,175.18,175.16,9.9]
[1748397616711,5.70808836,175.19,175.16,36.08523995]
[1748397616888,42.14808836,175.19,175.16,26.18523995]
[1748397617086,42.14808836,175.19,175.17,36.14523995]
[1748397618207,5.70808836,175.19,175.18,26.18523995]
[1748397618777,5.70743679,175.21,175.18,26.18523995]
[1748397618981,5.70743679,175.21,175.19,26.18523995]
[1748397620188,5.70743679,175.21,175.2,26.18523995]
[1748397620388,5.70743679,175.21,175.19,26.18523995]
[1748397622405,19.97602876,175.21,175.18,26.18523995]
[1748397622917,26.18523995,175.19,175.17,9.96]
[1748397623113,46.16468965,175.18,175.13,26.18523995]
[1748397623314,46.16468965,175.18,175.15,9.96]
[1748397623520,62.50523995,175.17,175.15,9.96]
[1748397624319,19.9794497,175.18,175.15,9.96]
[1748397624519,56.3394497,175.18,175.15,9.96]
[1748397625112,56.3394497,175.18,175.15,36.14523995]
[1748397625712,19.9794497,175.18,175.17,26.18523995]
[1748397625907,5.7084142,175.18,175.17,26.18523995]
[1748397626329,5.70776255,175.2,175.17,26.18523995]
[1748397626505,5.70776255,175.2,175.19,26.18523995]
[1748397627208,19.97311791,175.24,175.19,26.18523995]
[1748397627409,19.97311791,175.24,175.15,16.2711]
[1748397627410,19.97311791,175.24,175.2,26.18523995]
[1748397627735,19.97311791,175.24,175.21,36.14523995]
[1748397627938,19.97311791,175.24,175.22,9.96]
[1748397628239,19.97311791,175.24,175.21,9.96]
[1748397628405,26.18523995,175.23,175.2,9.96]
[1748397628609,46.15835786,175.24,175.2,9.96]
[1748397629541,19.97311791,175.24,175.2,36.14523995]
[1748397630334,46.15835786,175.24,175.2,9.96]
[1748397630534,26.18523995,175.21,175.2,9.96]
[1748397630850,26.18523995,175.22,175.2,9.96]
[1748397631044,19.97311791,175.24,175.2,9.96]
[1748397631223,56.31311791,175.24,175.2,36.14523995]
[1748397631558,56.31311791,175.24,175.2,9.96]
[1748397631717,26.18523995,175.22,175.2,9.96]
[1748397632235,26.18523995,175.21,175.2,9.96]
[1748397632936,56.31311791,175.24,175.2,9.96]
[1748397633241,5.70743679,175.21,175.2,9.96]
[1748397634344,31.89267674,175.21,175.2,9.96]
[1748397634842,5.70743679,175.21,175.2,9.96]
[1748397635649,26.18523995,175.21,175.2,9.96]
[1748397636844,31.89235101,175.22,175.2,9.96]
[1748397637145,26.18523995,175.21,175.2,9.96]
[1748397637549,5.70743679,175.21,175.2,9.96]
[1748397638451,31.89267674,175.21,175.2,9.96]
[1748397640434,31.89267674,175.21,175.12,4.09200531]
[1748397640435,26.0,175.18,175.12,4.09200531]
[1748397640633,44.79181043,175.13,175.12,4.09200531]
[1748397640932,52.18523995,175.13,175.12,4.09200531]
[1748397641132,26.0,175.14,175.12,4.09200531]
[1748397641344,26.18523995,175.13,175.12,4.09200531]
[1748397641545,26.0,175.14,175.12,4.09200531]
[1748397641723,26.18523995,175.13,175.12,4.09200531]
[1748397641923,31.89528391,175.13,175.12,4.09200531]
[1748397642130,34.09528391,175.13,175.12,4.09200531]
[1748397642649,96.47528391,175.13,175.12,4.09200531]
[1748397643846,99.28388546,175.13,175.12,4.09200531]
[1748397645055,73.28388546,175.13,175.12,4.09200531]
[1748397648438,47.09864551,175.13,175.12,4.09200531]
[1748397648650,70.47528391,175.13,175.12,4.09200531]
[1748397649430,44.29004396,175.13,175.12,4.09200531]
[1748397649634,70.47528391,175.13,175.12,4.09200531]
[1748397650035,34.09528391,175.13,175.12,4.09200531]
[1748397650239,70.43528391,175.13,175.12,4.09200531]
[1748397650438,70.25004396,175.13,175.12,4.09200531]
[1748397650635,73.16933494,175.13,175.12,4.09200531]
[1748397650838,99.35457489,175.13,175.12,4.09200531]
[1748397651037,70.25004396,175.13,175.12,4.09200531]
[1748397651263,96.43528391,175.13,175.12,4.09200531]
[1748397651652,33.91004396,175.13,175.12,4.09200531]
[1748397651833,96.41528391,175.13,175.12,4.09200531]
[1748397653844,99.29720294,175.13,175.12,4.09200531]
[1748397654471,125.48244289,175.13,175.12,4.09200531]
[1748397654636,99.29720294,175.13,175.12,4.09200531]
[1748397655548,79.51526299,175.13,175.12,4.09200531]
[1748397655760,99.29720294,175.13,175.12,4.09200531]
[1748397656059,96.43528391,175.13,175.12,4.09200531]
[1748397656360,60.09528391,175.13,175.12,4.09200531]
[1748397656562,7.91004396,175.13,175.12,4.09200531]
[1748397656946,5.71004396,175.13,175.12,30.27724526]
[1748397657445,5.71004396,175.13,175.12,4.09200531]
[1748397658437,5.70971793,175.14,175.12,4.09200531]
[1748397658639,31.89495788,175.14,175.12,4.09200531]
[1748397659355,5.70971793,175.14,175.12,4.09200531]
[1748397660870,5.70971793,175.14,175.13,26.18523995]
[1748397661389,5.70971793,175.14,175.12,13.99200531]
[1748397661593,26.18523995,175.13,175.12,13.99200531]
[1748397661897,26.18523995,175.13,175.12,4.09200531]
[1748397662193,28.38523995,175.13,175.12,4.09200531]
[1748397662570,26.18523995,175.13,175.12,4.09200531]
[1748397662769,31.89528391,175.13,175.12,4.09200531]
[1748397664663,5.71004396,175.13,175.12,4.09200531]
[1748397664892,31.89528391,175.13,175.12,4.09200531]
[1748397666885,5.71004396,175.13,175.12,4.09200531]
[1748397667398,34.09528391,175.13,175.12,4.09200531]
[1748397668287,31.89528391,175.13,175.12,4.09200531]
[1748397669997,5.71004396,175.13,175.12,4.09200531]
[1748397670497,75.18052386,175.13,175.12,1.23938816]
[1748397670700,18.79181043,175.09,174.99,1.5751]
[1748397670875,26.0,175.1,175.0,26.34523995]
[1748397671189,26.18523995,175.06,175.01,26.18523995]
[1748397671393,26.18523995,175.07,175.02,26.18523995]
[1748397671584,48.5464618,175.09,175.05,26.18523995]
[1748397671785,85.0864618,175.09,175.05,26.18523995]
[1748397672087,19.98971956,175.09,175.06,26.18523995]
[1748397672475,19.98971956,175.09,175.05,36.08523995]
[1748397672791,5.71134844,175.09,175.08,26.18523995]
[1748397672987,19.98677671,175.12,175.08,26.18523995]
[1748397673288,46.17201666,175.12,175.07,26.18523995]
[1748397673701,5.71037003,175.12,175.08,26.18523995]
[1748397673881,5.70971793,175.14,175.11,26.18523995]
[1748397674071,5.70971793,175.14,175.13,26.18523995]
[1748397675097,40.45673746,175.18,175.13,26.18523995]
[1748397675098,26.18523995,175.17,175.13,26.18523995]
[1748397675470,26.18523995,175.17,175.11,9.9]
[1748397675777,26.18523995,175.17,175.13,26.18523995]
[1748397676173,19.97991171,175.18,175.13,26.18523995]
[1748397676377,26.18523995,175.17,175.13,26.18523995]
[1748397677306,19.97991171,175.18,175.13,26.18523995]
[1748397677478,46.16515166,175.18,175.13,26.18523995]
[1748397678478,26.18523995,175.16,175.12,26.18523995]
[1748397678678,26.18523995,175.16,175.11,9.9]
[1748397678902,26.18523995,175.17,175.12,26.18523995]
[1748397679380,19.98173098,175.16,175.12,26.18523995]
[1748397679975,19.98173098,175.16,175.13,26.18523995]
[1748397680473,19.98173098,175.16,175.15,1.5275]
[1748397680883,14.2707589,175.19,175.15,27.71273995]
[1748397681084,26.18523995,175.24,175.18,26.18523995]
[1748397681305,46.15950439,175.23,175.18,26.18523995]
[1748397681481,26.18523995,175.22,175.17,9.98]
[1748397681679,26.18523995,175.18,175.17,8.61797]
[1748397682096,26.18523995,175.19,175.17,8.61797]
[1748397682603,26.18523995,175.2,175.17,8.61797]
[1748397682778,26.18523995,175.19,175.17,8.61797]
[1748397683391,26.18523995,175.18,175.17,8.61797]
[1748397683992,50.76931769,175.21,175.17,8.61797]
[1748397684199,26.18523995,175.19,175.17,8.61797]
[1748397684401,26.18523995,175.18,175.17,8.61797]
[1748397685673,26.18523995,175.18,175.15,1.5275]
[1748397685879,26.18523995,175.16,175.15,1.5275]
[1748397686092,26.18523995,175.18,175.15,1.5275]
[1748397686481,85.01393843,175.21,175.15,1.5275]
[1748397686704,26.18523995,175.18,175.15,1.5275]
[1748397686899,26.18523995,175.18,175.12,9.98]
[1748397686900,26.18523995,175.16,175.12,9.98]
[1748397687197,26.18523995,175.13,175.12,9.98]
[1748397688111,16.1239547,175.14,175.12,9.98]
[1748397688404,5.71004396,175.13,175.12,9.98]
[1748397689107,5.71004396,175.13,175.12,26.1039547]
[1748397690682,14.27341841,175.16,175.12,26.1039547]
[1748397690992,14.27341841,175.16,175.14,16.1239547]
[1748397691510,14.27341841,175.16,175.13,16.1239547]
[1748397691807,30.39737311,175.16,175.12,26.1039547]
[1748397692105,14.27341841,175.16,175.12,36.24807537]
[1748397692401,14.27341841,175.16,175.13,26.26807537]
[1748397692606,40.54149378,175.16,175.12,9.98]
[1748397692906,31.97811933,175.13,175.12,9.98]
[1748397693901,5.71004396,175.13,175.12,36.24807537]
[1748397695078,19.9824844,175.16,175.12,36.24807537]
[1748397695795,26.26807537,175.15,175.12,9.98]